bitfinex/quotes_BTCUSD_20241205
["timestamp","ask_amount","ask_price","bid_price","bid_amount"]
[1733373093734,0.48976562,102590.0,102580.0,5e-07]
[1733373093941,0.57256562,102590.0,102580.0,5e-07]
[1733373095703,0.0799,102610.0,102580.0,5e-07]
[1733373095903,0.194942,102600.0,102580.0,0.00017707]
[1733373096112,0.49226645,102610.0,102580.0,0.00017707]
[1733373096324,0.194946,102600.0,102580.0,0.00017707]
[1733373096547,0.68451405,102600.0,102580.0,0.00017707]
[1733373096775,0.48956805,102600.0,102580.0,0.00017707]
[1733373097026,0.48956805,102600.0,102550.0,0.0008672]
[1733373097027,0.195004,102570.0,102550.0,0.0008672]
[1733373097240,0.390004,102570.0,102550.0,0.0008672]
[1733373097678,0.585005,102570.0,102550.0,0.0008672]
[1733373097903,0.195007,102560.0,102550.0,0.0008672]
[1733373098340,0.2535079,102560.0,102550.0,0.0008672]
[1733373098548,0.195007,102560.0,102550.0,0.0008672]
[1733373098741,0.345007,102560.0,102550.0,0.0008672]
[1733373099116,0.345007,102560.0,102550.0,0.00145744]
[1733373099810,0.62478305,102560.0,102550.0,0.00145744]
[1733373100020,0.295026,102550.0,102530.0,0.0163708]
[1733373100230,0.295026,102550.0,102520.0,0.0008679]
[1733373100231,0.39472105,102540.0,102520.0,0.0008679]
[1733373100441,0.195064,102530.0,102520.0,0.0008679]
[1733373100757,0.58978105,102540.0,102520.0,0.0008679]
[1733373101210,0.195064,102530.0,102520.0,0.0008679]
[1733373102960,0.37210299,102540.0,102520.0,0.0008679]
[1733373103635,0.37210299,102540.0,102530.0,6.0]
[1733373103832,0.490074,102550.0,102520.0,0.0008679]
[1733373104061,0.31216336,102550.0,102520.0,0.0008679]
[1733373104234,0.50720336,102550.0,102520.0,0.0398839]
[1733373104643,0.01745431,102550.0,102520.0,0.17857395]
[1733373104857,0.01745431,102550.0,102540.0,0.039009]
[1733373105111,0.15058988,102560.0,102540.0,0.039009]
[1733373105724,0.470054,102580.0,102540.0,0.09967605]
[1733373105935,0.194989,102570.0,102540.0,0.26558205]
[1733373106163,0.194989,102570.0,102540.0,0.30459005]
[1733373106382,0.01790007,102580.0,102550.0,0.09967605]
[1733373106604,0.01790007,102580.0,102570.0,0.038997]
[1733373106809,0.01790007,102580.0,102560.0,0.038998]
[1733373107018,0.01790007,102580.0,102570.0,0.038997]
[1733373107220,0.01790007,102580.0,102560.0,0.07867405]
[1733373107454,0.01790007,102580.0,102570.0,0.038997]
[1733373107647,0.01790007,102580.0,102560.0,0.15667305]
[1733373107863,0.01790007,102580.0,102570.0,0.038997]
[1733373108067,0.01790007,102580.0,102560.0,0.15667305]
[1733373108292,0.01790007,102580.0,102560.0,0.11767205]
[1733373108505,0.01790007,102580.0,102560.0,0.15667105]
[1733373109140,0.01790007,102580.0,102560.0,0.19567005]
[1733373109347,0.01790007,102580.0,102560.0,0.077997]
[1733373109970,0.01790007,102580.0,102560.0,0.09780318]
[1733373110210,0.01790007,102580.0,102550.0,0.039004]
[1733373110211,0.11757612,102580.0,102550.0,0.039004]
[1733373110398,0.09967605,102570.0,102540.0,0.204912]
[1733373110597,0.29466605,102570.0,102520.0,0.0398829]
[1733373110802,0.29466605,102570.0,102530.0,0.13868505]
[1733373110803,0.09967605,102570.0,102530.0,0.13868505]
[1733373111006,0.09967605,102560.0,102530.0,0.039012]
[1733373111244,0.09967605,102560.0,102520.0,0.01988359]
[1733373111483,0.09967605,102560.0,102530.0,0.039012]
[1733373111717,0.09967605,102560.0,102510.0,0.0398877]
[1733373111939,0.51917566,102560.0,102530.0,0.039012]
[1733373112166,0.195027,102550.0,102520.0,0.039013]
[1733373112390,0.09967605,102550.0,102530.0,0.039009]
[1733373112600,0.09967605,102550.0,102530.0,0.039012]
[1733373112823,0.09967605,102550.0,102520.0,0.05809267]
[1733373113041,0.09967605,102550.0,102530.0,0.078019]
[1733373113168,0.09967605,102550.0,102520.0,0.01907767]
[1733373113394,0.31850236,102580.0,102540.0,0.039006]
[1733373113595,0.09967605,102570.0,102550.0,0.039002]
[1733373113803,0.09967605,102570.0,102540.0,0.117023]
[1733373113996,0.09967605,102570.0,102530.0,0.03901]
[1733373114207,0.29466505,102570.0,102540.0,0.039005]
[1733373114410,0.29466505,102570.0,102550.0,0.039005]
[1733373114633,0.09967605,102570.0,102550.0,0.039005]
[1733373114837,0.09967605,102570.0,102550.0,0.039002]
[1733373115055,0.09967605,102570.0,102540.0,0.039007]
[1733373115263,0.09967605,102570.0,102550.0,0.039002]
[1733373115430,0.09967605,102570.0,102560.0,0.039001]
[1733373115641,0.09967605,102570.0,102540.0,0.029256]
[1733373115847,0.09967605,102570.0,102560.0,0.029251]
[1733373116047,0.09967605,102570.0,102550.0,0.029251]
[1733373116291,0.09967605,102570.0,102560.0,0.029251]
[1733373116492,0.01706238,102580.0,102570.0,0.029248]
[1733373116692,1.5,102570.0,102560.0,0.029251]
[1733373116904,1.5,102570.0,102550.0,0.058502]
[1733373117103,0.09967605,102580.0,102560.0,0.029249]
[1733373117311,0.09967605,102580.0,102550.0,0.029251]
[1733373117521,1.5,102550.0,102530.0,0.14851254]
[1733373117747,1.5,102550.0,102540.0,0.029256]
[1733373117748,1.48199999,102550.0,102540.0,0.029256]
[1733373117961,0.09967605,102580.0,102570.0,0.029248]
[1733373118196,0.09967605,102580.0,102560.0,0.029249]
[1733373118415,0.09967605,102580.0,102560.0,0.029248]
[1733373118628,0.09967605,102580.0,102560.0,0.029249]
[1733373118832,1.5,102560.0,102550.0,0.029252]
[1733373119072,0.09967605,102580.0,102570.0,0.029248]
[1733373119287,0.09967605,102580.0,102560.0,0.029249]
[1733373119506,0.09967605,102580.0,102570.0,0.029248]
[1733373119736,0.16938873,102590.0,102580.0,0.029245]
[1733373119942,0.16938873,102590.0,102570.0,0.058494]
[1733373120147,0.16938873,102590.0,102580.0,0.029245]
[1733373120355,0.26906478,102590.0,102560.0,0.029251]
[1733373120602,1.59967605,102580.0,102550.0,0.02984188]
[1733373120828,0.17797605,102580.0,102530.0,0.09775448]
[1733373121039,0.22466582,102580.0,102530.0,0.0008684]
[1733373121271,0.61461682,102580.0,102550.0,0.029253]
[1733373121540,0.61461782,102580.0,102550.0,0.029253]
[1733373121750,0.48397298,102580.0,102550.0,0.029253]
[1733373121948,0.67894398,102580.0,102540.0,0.058509]
[1733373122156,0.09967605,102570.0,102550.0,0.029253]
[1733373122366,0.04866582,102580.0,102530.0,0.0301254]
[1733373122578,0.14834187,102580.0,102550.0,0.029251]
[1733373122793,0.14834187,102580.0,102560.0,0.029251]
[1733373122991,0.10026582,102580.0,102570.0,0.029248]
[1733373123192,0.1019918,102580.0,102570.0,0.029248]
[1733373123601,0.1019918,102580.0,102560.0,0.058498]
[1733373123810,0.00172598,102570.0,102550.0,0.058503]
[1733373124016,0.00172598,102570.0,102550.0,0.029251]
[1733373124252,0.00172598,102570.0,102550.0,0.058503]
[1733373124662,0.00231575,102580.0,102560.0,0.058499]
[1733373124890,0.00231575,102580.0,102570.0,0.029248]
[1733373125298,0.00259099,102580.0,102570.0,0.029248]
[1733373125528,0.00259099,102580.0,102570.0,0.009749]
[1733373125739,0.12047972,102600.0,102580.0,0.009748]
[1733373125950,0.22015577,102600.0,102580.0,0.019495]
[1733373126156,0.09967605,102600.0,102580.0,0.029241]
[1733373126353,0.11685566,102600.0,102590.0,0.009747]
[1733373126584,0.11685566,102600.0,102580.0,0.009747]
[1733373126809,0.01717961,102600.0,102590.0,0.009747]
[1733373127010,0.0809,102620.0,102600.0,0.019492]
[1733373127254,0.09967605,102610.0,102600.0,0.009746]
[1733373128091,0.09967605,102610.0,102590.0,0.019492]
[1733373128491,0.29458905,102610.0,102570.0,0.00058977]
[1733373128637,0.264234,102600.0,102570.0,0.00058977]
[1733373128849,0.12267605,102600.0,102570.0,0.01033777]
[1733373129048,0.023,102600.0,102570.0,0.10026582]
[1733373129244,0.023,102600.0,102580.0,0.009747]
[1733373129703,0.12267605,102600.0,102580.0,0.019494]
[1733373129924,0.12267605,102600.0,102570.0,0.01033777]
[1733373129925,0.12267605,102600.0,102570.0,0.00058977]
[1733373130150,0.123,102610.0,102600.0,5.48743795]
[1733373130377,0.194954,102590.0,102570.0,0.00058977]
[1733373130814,0.48955205,102600.0,102570.0,0.00058977]
[1733373131026,0.09967605,102600.0,102570.0,0.01033877]
[1733373131261,0.09967605,102600.0,102580.0,0.009748]
[1733373132895,0.08167604,102600.0,102580.0,0.009748]
[1733373133301,0.09881969,102600.0,102580.0,0.009748]
[1733373133551,0.09881969,102600.0,102570.0,0.02008577]
[1733373133702,0.09881969,102600.0,102580.0,0.009748]
[1733373135189,0.09881969,102600.0,102570.0,0.02008577]
[1733373135393,0.09881969,102600.0,102570.0,0.00058977]
[1733373135394,1.5,102580.0,102570.0,0.00058977]
[1733373135591,0.09881969,102600.0,102570.0,0.02008677]
[1733373135794,0.09967605,102600.0,102570.0,0.02008677]
[1733373136165,0.09967605,102600.0,102570.0,0.03958477]
[1733373136595,0.29460805,102600.0,102570.0,0.00058977]
[1733373136800,0.48955205,102600.0,102570.0,0.00058977]
[1733373137225,0.68449705,102600.0,102570.0,0.00058977]
[1733373137439,0.48955205,102600.0,102570.0,0.00058977]
[1733373137863,0.56580405,102590.0,102570.0,0.00058977]
[1733373138291,0.194969,102580.0,102570.0,0.00058977]
[1733373138721,0.19402836,102580.0,102570.0,0.00058977]
[1733373139135,0.29370441,102580.0,102570.0,0.00058977]
[1733373140818,0.09967605,102580.0,102570.0,0.00058977]
[1733373141027,0.37619546,102580.0,102570.0,0.00058977]
[1733373141238,0.47619546,102580.0,102570.0,0.00058977]
[1733373141703,0.02141023,102550.0,102540.0,0.1508685]
[1733373142120,0.21643623,102550.0,102540.0,0.1508685]
[1733373142330,0.02141023,102550.0,102540.0,0.1508685]
[1733373143395,0.02141023,102550.0,102540.0,0.0008685]
[1733373143607,0.02141023,102550.0,102540.0,0.10054455]
[1733373143819,0.02141023,102550.0,102540.0,0.12004855]
[1733373144265,0.02141023,102550.0,102540.0,0.2506744]
[1733373144471,0.02141023,102550.0,102540.0,0.24894855]
[1733373144900,0.02141023,102550.0,102540.0,0.20194855]
[1733373145527,0.02141023,102550.0,102540.0,0.21170055]
[1733373145945,0.19499,102570.0,102540.0,0.21170055]
[1733373146155,0.38998,102570.0,102540.0,0.0008685]
[1733373146369,0.48971905,102560.0,102540.0,0.0008685]
[1733373146634,0.29469405,102560.0,102540.0,0.0008685]
[1733373147047,0.195026,102550.0,102540.0,0.0008685]
[1733373147908,0.17702599,102550.0,102540.0,0.0008685]
[1733373148976,0.27670204,102550.0,102540.0,0.0008685]
[1733373150900,0.09967605,102550.0,102540.0,0.0008685]
[1733373151114,0.29470205,102550.0,102540.0,0.0008685]
[1733373154423,0.37317616,102550.0,102540.0,0.0008685]
[1733373154632,0.29470205,102550.0,102540.0,0.0008685]
[1733373155500,0.31627501,102550.0,102540.0,0.0008685]
[1733373155916,0.12124901,102550.0,102540.0,0.0008685]
[1733373156336,0.31627501,102550.0,102540.0,0.0008685]
[1733373156982,0.295018,102560.0,102550.0,9.68372499]
[1733373157173,0.295018,102560.0,102550.0,3.63434331]
[1733373158061,0.64055915,102560.0,102550.0,3.34601518]
[1733373158505,0.54263993,102560.0,102550.0,3.34601518]
[1733373158720,0.44263993,102560.0,102550.0,3.34601518]
[1733373158940,0.54263993,102560.0,102550.0,3.33770284]
[1733373160756,0.34762193,102560.0,102550.0,3.33770284]
[1733373161674,0.54264393,102560.0,102550.0,3.33770284]
[1733373161942,0.55281357,102560.0,102550.0,4.73770284]
[1733373162165,0.1,102550.0,102540.0,0.0008685]
[1733373162431,0.195026,102550.0,102540.0,0.0008685]
[1733373162886,0.02114588,102560.0,102550.0,0.029254]
[1733373163120,0.02114588,102560.0,102550.0,0.15]
[1733373163357,0.195007,102560.0,102550.0,0.15]
[1733373163605,0.195007,102560.0,102540.0,0.0008685]
[1733373163606,0.195026,102550.0,102540.0,0.0008685]
[1733373163822,0.29470205,102550.0,102540.0,0.0008685]
[1733373164300,0.44470205,102550.0,102540.0,0.0008685]
[1733373165928,0.24967605,102550.0,102540.0,0.0008685]
[1733373166144,0.24967605,102550.0,102540.0,1.0008685]
[1733373166378,0.44471005,102550.0,102520.0,0.15]
[1733373166576,0.195056,102540.0,102520.0,0.15]
[1733373166848,0.390115,102540.0,102520.0,0.15]
[1733373167345,0.15,102550.0,102520.0,0.24967605]
[1733373167582,0.15,102550.0,102530.0,0.13868605]
[1733373167800,0.345027,102550.0,102530.0,0.10026582]
[1733373168044,0.15,102550.0,102530.0,0.10026582]
[1733373168268,0.15,102550.0,102530.0,0.17828982]
[1733373168492,0.15,102550.0,102540.0,10.0]
[1733373169479,0.15,102550.0,102540.0,10.039009]
[1733373169731,0.17144916,102550.0,102540.0,10.0]
[1733373170955,0.2368315,102560.0,102540.0,10.039009]
[1733373171189,0.4318485,102560.0,102540.0,10.0]
[1733373171671,0.2368315,102560.0,102540.0,10.13868505]
[1733373171901,0.04462694,102560.0,102540.0,10.09967605]
[1733373172227,0.43465394,102560.0,102540.0,10.09967605]
[1733373173208,0.62967494,102560.0,102540.0,10.09967605]
[1733373173436,0.43465394,102560.0,102540.0,10.09967605]
[1733373174366,0.62967494,102560.0,102540.0,10.09967605]
[1733373174583,0.43465394,102560.0,102540.0,10.0]
[1733373174818,0.218026,102550.0,102540.0,10.0]
[1733373175736,0.023,102550.0,102540.0,10.0]
[1733373176185,0.218026,102550.0,102540.0,10.0]
[1733373177752,0.41770205,102550.0,102540.0,3.75654605]
[1733373177984,0.44840204,102550.0,102540.0,3.75654605]
[1733373178722,0.45013964,102550.0,102540.0,3.75654605]
[1733373179944,0.52723964,102550.0,102540.0,3.75654605]
[1733373181306,0.1967636,102550.0,102540.0,3.75654605]
[1733373181770,0.44482568,102560.0,102540.0,3.75654605]
[1733373181992,0.195026,102550.0,102540.0,3.75654605]
[1733373183436,0.54450173,102560.0,102540.0,3.75654605]
[1733373183669,0.195026,102550.0,102540.0,3.75654605]
[1733373184347,0.6272719,102560.0,102540.0,3.75654605]
[1733373184581,0.73952673,102560.0,102540.0,3.75654605]
[1733373184837,0.53432999,102560.0,102540.0,3.75654605]
[1733373185106,0.195026,102550.0,102540.0,3.75654605]
[1733373185551,0.33931199,102560.0,102540.0,3.75654605]
[1733373185552,0.53433099,102560.0,102540.0,3.75654605]
[1733373185774,0.35833099,102560.0,102540.0,3.75654605]
[1733373186025,0.29469505,102560.0,102540.0,3.75654605]
[1733373186245,0.48971705,102560.0,102540.0,3.75654605]
[1733373186714,0.51164643,102560.0,102540.0,3.75654605]
[1733373187394,0.31662443,102560.0,102540.0,3.75654605]
[1733373187684,0.02192938,102560.0,102540.0,3.83456205]
[1733373187914,0.02192938,102560.0,102540.0,3.82430505]
[1733373188135,0.4732,102570.0,102540.0,3.78529705]
[1733373188386,0.57287605,102570.0,102540.0,3.82430405]
[1733373188619,0.57287305,102570.0,102540.0,3.82430205]
[1733373188870,0.20001244,102590.0,102560.0,0.039001]
[1733373188871,0.468113,102590.0,102560.0,0.039001]
[1733373191679,0.194988,102570.0,102560.0,0.15]
[1733373191925,0.37035605,102580.0,102560.0,0.15]
[1733373192146,0.09967605,102580.0,102560.0,0.15]
[1733373192851,0.29464505,102580.0,102560.0,0.15]
[1733373193093,0.27664504,102580.0,102560.0,0.15]
[1733373193589,0.47162504,102580.0,102560.0,0.15]
[1733373194095,0.194988,102570.0,102560.0,0.15]
[1733373194539,0.194988,102570.0,102540.0,3.92992012]
[1733373194778,0.47162604,102580.0,102540.0,4.02959617]
[1733373195044,0.4927821,102580.0,102550.0,0.039005]
[1733373195316,0.6877661,102580.0,102550.0,0.039005]
[1733373195560,1.5,102550.0,102540.0,3.99059017]
[1733373195801,0.41470232,102580.0,102540.0,3.99059017]
[1733373196030,0.31405728,102580.0,102550.0,0.14843105]
[1733373196253,0.41112206,102580.0,102550.0,0.14843105]
[1733373196475,0.60610606,102580.0,102550.0,0.14843105]
[1733373196936,0.60669583,102580.0,102550.0,0.14843105]
[1733373197405,0.41171183,102580.0,102550.0,0.14843105]
[1733373197675,0.41171183,102580.0,102550.0,0.19718705]
[1733373197676,0.21672783,102580.0,102550.0,0.19718705]
[1733373198105,0.41170683,102580.0,102550.0,0.14843105]
[1733373198801,0.21672483,102580.0,102550.0,0.19718705]
[1733373199278,0.21672483,102580.0,102550.0,0.24594105]
[1733373199519,0.41170483,102580.0,102550.0,0.19718505]
[1733373200231,0.02174583,102580.0,102560.0,0.0975]
[1733373200466,0.02174583,102580.0,102560.0,0.14842505]
[1733373200683,0.02174583,102580.0,102560.0,0.14842405]
[1733373200909,0.389888,102600.0,102560.0,0.19717305]
[1733373201130,0.194951,102590.0,102560.0,0.19776282]
[1733373201833,0.48956405,102600.0,102560.0,0.19776182]
[1733373202043,0.194953,102590.0,102560.0,0.19776182]
[1733373203098,0.194953,102590.0,102560.0,0.19863022]
[1733373204133,0.194953,102590.0,102560.0,0.24737922]
[1733373204370,0.61751176,102600.0,102570.0,0.048746]
[1733373204796,0.61751176,102600.0,102560.0,0.19863122]
[1733373205002,0.71489989,102600.0,102560.0,0.14988222]
[1733373205215,0.69577816,102600.0,102570.0,0.048747]
[1733373205455,0.02902998,102600.0,102570.0,0.27386505]
[1733373205686,0.02902998,102600.0,102570.0,0.33235805]
[1733373205893,0.66253261,102610.0,102570.0,0.33235805]
[1733373206103,0.73672543,102610.0,102570.0,0.48235805]
[1733373206314,0.59404158,102610.0,102570.0,0.42386505]
[1733373206515,0.194934,102600.0,102570.0,0.42386505]
[1733373206950,0.32136397,102610.0,102570.0,0.37511905]
[1733373207166,0.51628897,102610.0,102570.0,0.43361105]
[1733373207790,0.194934,102600.0,102570.0,0.43361105]
[1733373208005,0.17693399,102600.0,102570.0,0.43361105]
[1733373208228,0.51628897,102610.0,102570.0,0.37511905]
[1733373208439,0.32136297,102610.0,102580.0,0.10769]
[1733373208650,0.32136297,102610.0,102580.0,0.0492]
[1733373208853,0.51628797,102610.0,102580.0,0.0492]
[1733373209291,0.51628797,102610.0,102580.0,0.10769]
[1733373210163,0.71121297,102610.0,102580.0,0.0492]
[1733373210375,0.51628797,102610.0,102580.0,0.0492]
[1733373210846,0.29462405,102600.0,102570.0,0.15]
[1733373211057,0.46642511,102590.0,102560.0,0.20145817]
[1733373211267,0.44096588,102570.0,102550.0,0.2]
[1733373211477,0.195007,102560.0,102540.0,3.89715775]
[1733373211684,0.390028,102560.0,102540.0,3.89715775]
[1733373211892,0.195026,102550.0,102540.0,3.89715775]
[1733373213007,0.195007,102560.0,102540.0,3.89715775]
[1733373213234,0.195007,102560.0,102540.0,3.89733459]
[1733373213471,0.390027,102560.0,102540.0,3.89733459]
[1733373213892,0.585047,102560.0,102540.0,3.89733459]
[1733373214317,0.47104763,102560.0,102540.0,3.89733459]
[1733373214547,0.195026,102550.0,102540.0,3.89733459]
[1733373214974,0.218026,102550.0,102540.0,3.89733459]
[1733373215177,0.023,102550.0,102540.0,3.89733459]
[1733373215394,0.218026,102550.0,102540.0,3.89733459]
[1733373215606,0.195064,102530.0,102520.0,0.0008688]
[1733373215828,0.34506,102540.0,102520.0,0.00104581]
[1733373216083,0.345058,102540.0,102520.0,0.00104581]
[1733373216293,0.15,102540.0,102530.0,0.15819505]
[1733373216508,0.15,102540.0,102530.0,0.09967605]
[1733373216717,0.15,102540.0,102530.0,0.15819505]
[1733373217828,0.15,102540.0,102530.0,0.09967605]
[1733373218252,0.12345894,102540.0,102530.0,0.15819505]
[1733373218453,0.12345894,102540.0,102530.0,0.23329505]
[1733373220083,0.12345894,102540.0,102530.0,0.17477605]
[1733373220301,0.05061501,102550.0,102530.0,0.30781182]
[1733373220523,0.05061501,102550.0,102540.0,0.058513]
[1733373220734,0.05061501,102550.0,102540.0,0.15818905]
[1733373220979,0.194982,102580.0,102540.0,0.15818905]
[1733373221206,0.195045,102540.0,102520.0,0.04704581]
[1733373221622,0.390104,102540.0,102520.0,0.00104581]
[1733373221801,0.195064,102530.0,102520.0,0.00104581]
[1733373222866,0.27674004,102530.0,102520.0,0.00104581]
[1733373224485,0.42674004,102530.0,102520.0,0.00104581]
[1733373224688,0.52292878,102530.0,102520.0,0.00104581]
[1733373224891,0.54841201,102530.0,102520.0,0.00104581]
[1733373225305,0.54693459,102530.0,102520.0,0.00104581]
[1733373225449,0.22056623,102520.0,102510.0,0.0008677]
[1733373225651,0.32024228,102520.0,102510.0,0.0008677]
[1733373225881,0.2230785,102520.0,102500.0,0.0017338]
[1733373226055,0.29477805,102510.0,102500.0,0.0017338]
[1733373226658,0.30494979,102510.0,102500.0,0.0017338]
[1733373229163,0.29477805,102510.0,102500.0,0.0017338]
[1733373229383,0.32026128,102510.0,102500.0,0.0017338]
[1733373229577,0.40130701,102510.0,102500.0,0.0017338]
[1733373230425,0.195121,102500.0,102470.0,0.10779416]
[1733373230636,0.29479705,102500.0,102490.0,0.00017704]
[1733373230854,0.29479805,102500.0,102490.0,0.00017704]
[1733373231056,0.48992005,102500.0,102490.0,0.00017704]
[1733373231506,0.390223,102510.0,102490.0,0.00017704]
[1733373231706,0.54208584,102510.0,102490.0,0.00017704]
[1733373231906,0.195121,102500.0,102490.0,0.00017704]
[1733373232131,0.54208984,102510.0,102490.0,0.00017704]
[1733373232574,0.36618185,102510.0,102490.0,0.00017704]
[1733373232880,0.56129985,102510.0,102490.0,0.00017704]
[1733373233006,0.195121,102500.0,102490.0,0.00017704]
[1733373233437,0.56129985,102510.0,102490.0,0.00017704]
[1733373233642,0.62844701,102510.0,102490.0,0.00017704]
[1733373233845,0.195121,102500.0,102490.0,0.00017704]
[1733373234050,0.62844701,102510.0,102490.0,0.00017704]
[1733373234616,0.04592057,102510.0,102490.0,0.09985309]
[1733373234842,0.195103,102510.0,102490.0,0.00017704]
[1733373235070,0.390217,102510.0,102490.0,0.00017704]
[1733373235424,0.195103,102510.0,102490.0,0.00017704]
[1733373235828,0.2572387,102520.0,102490.0,0.00017704]
[1733373236021,0.195114,102510.0,102490.0,0.00017704]
[1733373236727,0.39703452,102520.0,102490.0,0.00017704]
[1733373236926,0.59213152,102520.0,102490.0,0.00017704]
[1733373237537,0.195106,102510.0,102490.0,0.00017704]
[1733373237936,0.17710599,102510.0,102490.0,0.00017704]
[1733373238344,0.55201175,102520.0,102490.0,0.00017704]
[1733373238547,0.62362567,102520.0,102490.0,0.00017704]
[1733373238676,0.52652852,102520.0,102490.0,0.00017704]
[1733373238898,0.52652852,102520.0,102490.0,0.00104524]
[1733373239531,0.195104,102510.0,102490.0,0.00104524]
[1733373239740,0.195104,102510.0,102470.0,0.045077]
[1733373239959,0.25048273,102510.0,102480.0,0.15822305]
[1733373240166,0.05537873,102510.0,102480.0,0.21676705]
[1733373240379,0.05537873,102510.0,102480.0,0.15822005]
[1733373240804,0.05537873,102510.0,102480.0,0.21676705]
[1733373241445,0.00017685,102510.0,102480.0,0.21676705]
[1733373241644,0.54184401,102520.0,102480.0,0.21676705]
[1733373241864,0.73694501,102520.0,102480.0,0.1583969]
[1733373242088,0.56097309,102520.0,102480.0,0.1583969]
[1733373242299,0.195103,102510.0,102480.0,0.1583969]
[1733373242499,0.23744151,102510.0,102480.0,0.1583969]
[1733373242728,0.75607009,102520.0,102480.0,0.1583969]
[1733373242916,0.56097309,102520.0,102480.0,0.2169439]
[1733373243293,0.12616878,102520.0,102490.0,0.107341]
[1733373243493,0.02649273,102520.0,102500.0,0.09967605]
[1733373243695,0.2776044,102530.0,102490.0,0.185837]
[1733373243906,0.195114,102510.0,102480.0,0.00017685]
[1733373244121,0.390228,102510.0,102480.0,0.0998529]
[1733373244320,0.3953095,102510.0,102480.0,0.0998529]
[1733373244526,0.2001955,102510.0,102480.0,0.0998529]
[1733373244776,0.195132,102500.0,102480.0,0.00017685]
[1733373245262,0.57378455,102510.0,102480.0,0.00017685]
[1733373245914,0.4974606,102510.0,102480.0,0.00017685]
[1733373246127,0.438598,102520.0,102480.0,0.1583999]
[1733373246339,0.48986905,102520.0,102480.0,0.2169439]
[1733373246588,0.195105,102510.0,102480.0,0.1583969]
[1733373247003,0.48986505,102520.0,102480.0,0.1583969]
[1733373247639,0.68496205,102520.0,102480.0,0.1583969]
[1733373247859,0.195107,102510.0,102480.0,0.0998529]
[1733373248061,0.29477005,102520.0,102480.0,0.0998529]
[1733373248263,0.48986505,102520.0,102480.0,0.0998529]
[1733373248468,0.35573431,102520.0,102480.0,0.0998529]
[1733373248672,0.54989272,102520.0,102480.0,0.0998529]
[1733373248879,0.195105,102510.0,102480.0,0.0998529]
[1733373250869,0.019105,102510.0,102480.0,0.0998529]
[1733373251070,0.56946227,102520.0,102480.0,0.0998529]
[1733373251342,0.76456327,102520.0,102480.0,0.0998529]
[1733373251543,0.54989172,102520.0,102480.0,0.0998529]
[1733373251672,0.195107,102510.0,102480.0,0.0998529]
[1733373252359,0.195107,102510.0,102480.0,0.100721]
[1733373252773,0.29556966,102520.0,102480.0,0.159264]
[1733373252977,0.1968302,102520.0,102490.0,0.18157605]
[1733373253589,0.0017362,102520.0,102490.0,0.18157605]
[1733373253996,0.1968212,102520.0,102490.0,0.18157605]
[1733373255112,0.0017362,102520.0,102490.0,0.18157605]
[1733373255316,0.1968202,102520.0,102490.0,0.18157605]
[1733373255721,0.0017362,102520.0,102500.0,0.107436]
[1733373255929,0.195026,102550.0,102510.0,0.16884872]
[1733373256139,0.195046,102540.0,102510.0,0.26852477]
[1733373256346,0.390092,102540.0,102510.0,0.26852477]
[1733373256545,0.51179597,102550.0,102510.0,0.32705477]
[1733373256750,0.48974505,102550.0,102510.0,0.38558477]
[1733373257171,0.195026,102550.0,102510.0,0.44410877]
[1733373257382,0.46103801,102560.0,102520.0,0.14787372]
[1733373257588,0.03201601,102560.0,102530.0,0.1298]
[1733373257795,0.02693085,102560.0,102530.0,0.31882477]
[1733373257998,0.22193985,102560.0,102530.0,0.31882477]
[1733373258202,0.195009,102560.0,102530.0,0.31882477]
[1733373258622,0.19559972,102560.0,102530.0,0.31882477]
[1733373258824,0.39061872,102560.0,102530.0,0.31882477]
[1733373259052,0.58564072,102560.0,102530.0,0.31882477]
[1733373259264,0.39061872,102560.0,102530.0,0.31882477]
[1733373259890,0.4230855,102560.0,102530.0,0.31882477]
[1733373260094,0.4230855,102560.0,102530.0,0.1298]
[1733373260095,0.18121678,102560.0,102530.0,0.1298]
[1733373260299,0.390075,102550.0,102520.0,0.08934872]
[1733373260507,0.390075,102550.0,102520.0,0.18902477]
[1733373260720,0.21860572,102560.0,102530.0,0.18902477]
[1733373260925,0.22862983,102570.0,102540.0,0.0805]
[1733373261135,0.46116776,102570.0,102540.0,0.22527605]
[1733373261350,0.37530726,102570.0,102540.0,0.1256]
[1733373261553,0.195019,102560.0,102540.0,0.1256]
[1733373261779,0.37531726,102570.0,102540.0,0.1256]
[1733373261986,0.195008,102560.0,102540.0,0.1256]
[1733373262402,0.52349294,102570.0,102540.0,0.1256]
[1733373262650,0.195008,102560.0,102540.0,0.1256]
[1733373264503,0.195008,102560.0,102530.0,0.08934872]
[1733373264717,0.390026,102560.0,102540.0,10.0]
[1733373264938,0.195026,102550.0,102540.0,10.0]
[1733373265168,0.2297419,102560.0,102540.0,10.0]
[1733373265393,0.195026,102550.0,102540.0,4.0]
[1733373265857,0.2799554,102560.0,102540.0,4.0]
[1733373266083,0.4749774,102560.0,102540.0,4.0]
[1733373266319,0.1967554,102560.0,102540.0,4.0]
[1733373266580,0.0017354,102560.0,102540.0,4.09967605]
[1733373267065,0.1967574,102560.0,102540.0,4.0]
[1733373267307,0.3917744,102560.0,102540.0,4.0]
[1733373268509,0.1967524,102560.0,102540.0,4.0]
[1733373268734,0.1967524,102560.0,102540.0,4.18902477]
[1733373268735,0.0017354,102560.0,102540.0,4.18902477]
[1733373268947,0.0017354,102560.0,102540.0,4.24753377]
[1733373269165,0.0017354,102560.0,102540.0,4.30604677]
[1733373270094,0.0017354,102560.0,102540.0,4.36455977]
[1733373270331,0.0017354,102560.0,102540.0,4.30604677]
[1733373270784,0.05454229,102570.0,102540.0,4.30604677]
[1733373270997,0.49769812,102580.0,102540.0,4.30604677]
[1733373271217,0.66422379,102580.0,102540.0,4.24812449]
[1733373271424,0.194993,102570.0,102540.0,4.24812449]
[1733373271638,0.0346284,102580.0,102550.0,0.18902477]
[1733373271848,0.0346284,102580.0,102560.0,0.14784672]
[1733373272052,0.34495,102590.0,102570.0,0.09967605]
[1733373272455,0.15,102590.0,102570.0,0.09967605]
[1733373272904,0.344961,102590.0,102560.0,0.08924872]
[1733373273115,1.5,102570.0,102560.0,0.18892477]
[1733373273325,0.539927,102590.0,102560.0,0.18892477]
[1733373273740,0.57419976,102590.0,102560.0,0.18892477]
[1733373273949,0.37923376,102590.0,102560.0,0.18892477]
[1733373274163,0.37923376,102590.0,102560.0,0.24742577]
[1733373274387,0.57419876,102590.0,102560.0,0.18892477]
[1733373274605,0.194974,102580.0,102560.0,0.18892477]
[1733373275066,0.57290519,102590.0,102560.0,0.18892477]
[1733373275503,0.03427276,102590.0,102570.0,0.18892477]